[Event "Early-Titled-Tuesday-Blitz-February-13-2024"]
[Site "Chess.com"]
[Date "2024.02.13"]
[Round "3"]
[White "2346PL"]
[Black "ElephantChessGenius"]
[Result "0-1"]
[WhiteElo "2546"]
[BlackElo "2288"]
[TimeControl "180+1"]
[EndTime "8:31:05 PST"]
[Termination "ElephantChessGenius won by resignation"]

1. e4 {[%clk 0:03:00.9]} 1... c5 {[%clk 0:02:59.6]} 2. c3 {[%clk 0:02:58.7]}
2... Nf6 {[%clk 0:02:58.5]} 3. e5 {[%clk 0:02:58.1]} 3... Nd5 {[%clk 0:02:58.8]}
4. d4 {[%clk 0:02:58.9]} 4... d6 {[%clk 0:02:58.8]} 5. Nf3 {[%clk 0:02:59.2]}
5... Nc6 {[%clk 0:02:57.6]} 6. h3 {[%clk 0:02:45.8]} 6... g6 {[%clk 0:02:50.7]}
7. Bc4 {[%clk 0:02:37.2]} 7... dxe5 {[%clk 0:02:49.6]} 8. dxe5 {[%clk
0:02:35.1]} 8... Be6 {[%clk 0:02:48.4]} 9. Ng5 {[%clk 0:02:29]} 9... Bg7 {[%clk
0:02:45.9]} 10. Nxe6 {[%clk 0:02:25.5]} 10... fxe6 {[%clk 0:02:45.4]} 11. f4
{[%clk 0:02:25]} 11... O-O {[%clk 0:02:44.4]} 12. O-O {[%clk 0:02:24.8]} 12...
Qa5 {[%clk 0:02:36.8]} 13. Bxd5 {[%clk 0:02:22.2]} 13... exd5 {[%clk 0:02:33.5]}
14. Qxd5+ {[%clk 0:02:23.1]} 14... Kh8 {[%clk 0:02:33.8]} 15. Be3 {[%clk
0:02:19.6]} 15... Qb5 {[%clk 0:02:29]} 16. b3 {[%clk 0:02:11.5]} 16... Nxe5
{[%clk 0:01:40.3]} 17. c4 {[%clk 0:02:06.1]} 17... Qc6 {[%clk 0:01:28.3]} 18.
fxe5 {[%clk 0:01:58.1]} 18... Rxf1+ {[%clk 0:01:24.7]} 19. Kxf1 {[%clk
0:01:54.8]} 19... Qxd5 {[%clk 0:01:24.7]} 20. cxd5 {[%clk 0:01:55.4]} 20... Bxe5
{[%clk 0:01:25]} 21. Bxc5 {[%clk 0:01:53.4]} 21... Bxa1 {[%clk 0:01:24.5]} 22.
Bxe7 {[%clk 0:01:53.5]} 22... Kg7 {[%clk 0:01:22.1]} 23. Nd2 {[%clk 0:01:44.5]}
23... Kf7 {[%clk 0:01:21.1]} 24. Bg5 {[%clk 0:01:43]} 24... Bf6 {[%clk
0:01:17.2]} 25. Be3 {[%clk 0:01:36.5]} 25... a6 {[%clk 0:01:01.3]} 26. Ne4
{[%clk 0:01:29.7]} 26... Rd8 {[%clk 0:00:53]} 27. d6 {[%clk 0:01:28.7]} 27...
Be5 {[%clk 0:00:38.1]} 28. Bg5 {[%clk 0:01:20.7]} 28... Rd7 {[%clk 0:00:33.4]}
29. Be7 {[%clk 0:01:20.9]} 29... b6 {[%clk 0:00:29.4]} 30. Ke2 {[%clk
0:01:16.8]} 30... h6 {[%clk 0:00:25.1]} 31. Kf3 {[%clk 0:01:00.6]} 31... Ke6
{[%clk 0:00:23.4]} 32. Bf8 {[%clk 0:01:01.1]} 32... Rf7+ {[%clk 0:00:22]} 33.
Ke3 {[%clk 0:00:55.3]} 33... Rxf8 {[%clk 0:00:21.6]} 34. d7 {[%clk 0:00:52]}
34... Kxd7 {[%clk 0:00:21.2]} 35. Nd2 {[%clk 0:00:52.2]} 35... Bf4+ {[%clk
0:00:19.2]} 36. Kd3 {[%clk 0:00:51.8]} 36... Bxd2 {[%clk 0:00:19.4]} 37. Kxd2
{[%clk 0:00:52.7]} 37... Rf2+ {[%clk 0:00:19.7]} 0-1

[Event "Early-Titled-Tuesday-Blitz-February-13-2024"]
[Site "Chess.com"]
[Date "2024.02.13"]
[Round "3"]
[White "Cirky"]
[Black "Titus369"]
[Result "1-0"]
[WhiteElo "2491"]
[BlackElo "2646"]
[TimeControl "180+1"]
[EndTime "8:31:10 PST"]
[Termination "Cirky won by resignation"]

1. d4 {[%clk 0:03:00.9]} 1... d5 {[%clk 0:02:59]} 2. c4 {[%clk 0:03:00.7]} 2...
e6 {[%clk 0:02:58.1]} 3. Nf3 {[%clk 0:03:00.7]} 3... Nf6 {[%clk 0:02:58]} 4. Nc3
{[%clk 0:02:59.6]} 4... Be7 {[%clk 0:02:58.1]} 5. Bf4 {[%clk 0:02:59.3]} 5...
O-O {[%clk 0:02:58.3]} 6. e3 {[%clk 0:02:58.3]} 6... Nbd7 {[%clk 0:02:57.3]} 7.
Qc2 {[%clk 0:02:57.6]} 7... c5 {[%clk 0:02:54.2]} 8. dxc5 {[%clk 0:02:57.8]}
8... Nxc5 {[%clk 0:02:52.7]} 9. Be2 {[%clk 0:02:52.1]} 9... Nce4 {[%clk
0:02:51.1]} 10. O-O {[%clk 0:02:50.2]} 10... Nxc3 {[%clk 0:02:49.8]} 11. Qxc3
{[%clk 0:02:48.1]} 11... Bd7 {[%clk 0:02:41.4]} 12. Rfd1 {[%clk 0:02:39.3]}
12... Bc6 {[%clk 0:02:39.7]} 13. Ne5 {[%clk 0:02:37.7]} 13... Qc8 {[%clk
0:02:25.9]} 14. Rac1 {[%clk 0:02:35.9]} 14... dxc4 {[%clk 0:02:24.4]} 15. Nxc6
{[%clk 0:02:29.3]} 15... Qxc6 {[%clk 0:02:22]} 16. Qxc4 {[%clk 0:02:29.7]} 16...
Qxc4 {[%clk 0:02:19.4]} 17. Rxc4 {[%clk 0:02:29.6]} 17... Rac8 {[%clk
0:02:19.7]} 18. Rdc1 {[%clk 0:02:27.2]} 18... Rxc4 {[%clk 0:02:18.1]} 19. Rxc4
{[%clk 0:02:28.1]} 19... Bd8 {[%clk 0:02:15.9]} 20. Bf3 {[%clk 0:02:04]} 20...
b5 {[%clk 0:02:12.8]} 21. Rc5 {[%clk 0:01:41.7]} 21... b4 {[%clk 0:02:05.5]} 22.
Bd6 {[%clk 0:01:28.9]} 22... Re8 {[%clk 0:02:04]} 23. Bc6 {[%clk 0:01:22.8]}
23... Bb6 {[%clk 0:02:02.3]} 24. Bxe8 {[%clk 0:01:21.3]} 24... Bxc5 {[%clk
0:02:01.7]} 25. Bxc5 {[%clk 0:00:46.6]} 25... Nxe8 {[%clk 0:01:55.9]} 26. Bxa7
{[%clk 0:00:47]} 26... Nc7 {[%clk 0:01:50.8]} 27. Bc5 {[%clk 0:00:42.4]} 27...
Na6 {[%clk 0:01:48.2]} 28. Bd6 {[%clk 0:00:42.5]} 28... f6 {[%clk 0:01:48.5]}
29. f4 {[%clk 0:00:41.6]} 29... Kf7 {[%clk 0:01:46.8]} 30. e4 {[%clk 0:00:42.1]}
30... Ke8 {[%clk 0:01:46.8]} 31. Kf2 {[%clk 0:00:42]} 31... Kd7 {[%clk
0:01:46.7]} 32. e5 {[%clk 0:00:42.7]} 32... fxe5 {[%clk 0:01:42.8]} 33. fxe5
{[%clk 0:00:42.9]} 33... Kc6 {[%clk 0:01:43.4]} 34. Ke3 {[%clk 0:00:42.9]} 34...
Kd5 {[%clk 0:01:43.9]} 35. Kd3 {[%clk 0:00:42.9]} 35... h5 {[%clk 0:01:39.3]}
36. g3 {[%clk 0:00:40.3]} 36... g5 {[%clk 0:01:37.8]} 37. h3 {[%clk 0:00:40.1]}
37... g4 {[%clk 0:01:35.7]} 38. hxg4 {[%clk 0:00:40.2]} 38... hxg4 {[%clk
0:01:36.6]} 39. Ke3 {[%clk 0:00:37.6]} 39... Nc5 {[%clk 0:01:22.5]} 40. Bxc5
{[%clk 0:00:32.4]} 40... Kxc5 {[%clk 0:01:23.4]} 41. Ke4 {[%clk 0:00:28.4]}
41... Kc4 {[%clk 0:01:23.1]} 42. Kf4 {[%clk 0:00:23]} 42... Kd4 {[%clk
0:01:22.1]} 43. Kxg4 {[%clk 0:00:23.3]} 43... Kxe5 {[%clk 0:01:22.6]} 44. Kf3
{[%clk 0:00:23.7]} 44... Kd4 {[%clk 0:01:14.9]} 45. Ke2 {[%clk 0:00:22.4]} 45...
Ke4 {[%clk 0:01:14.6]} 46. a4 {[%clk 0:00:22.1]} 1-0

[Event "Early-Titled-Tuesday-Blitz-February-13-2024"]
[Site "Chess.com"]
[Date "2024.02.13"]
[Round "3"]
[White "marsofsilva"]
[Black "Ducke13"]
[Result "1-0"]
[WhiteElo "2095"]
[BlackElo "2312"]
[TimeControl "180+1"]
[EndTime "8:31:11 PST"]
[Termination "marsofsilva won on time"]

1. e4 {[%clk 0:03:00.9]} 1... c5 {[%clk 0:02:59]} 2. Nf3 {[%clk 0:03:00.8]} 2...
d6 {[%clk 0:02:58.7]} 3. d4 {[%clk 0:03:00.6]} 3... cxd4 {[%clk 0:02:59.4]} 4.
Nxd4 {[%clk 0:03:00.9]} 4... Nf6 {[%clk 0:02:59.8]} 5. Nc3 {[%clk 0:03:00.7]}
5... a6 {[%clk 0:02:59.2]} 6. Be3 {[%clk 0:03:00.5]} 6... e5 {[%clk 0:02:54.3]}
7. Nf3 {[%clk 0:03:00.2]} 7... Be7 {[%clk 0:02:44.3]} 8. Bc4 {[%clk 0:02:59.3]}
8... Be6 {[%clk 0:02:37.6]} 9. Bxe6 {[%clk 0:02:58.7]} 9... fxe6 {[%clk
0:02:37.1]} 10. Ng5 {[%clk 0:02:58.7]} 10... Qd7 {[%clk 0:02:35.8]} 11. Qf3
{[%clk 0:02:58.4]} 11... Nc6 {[%clk 0:02:31.4]} 12. Qh3 {[%clk 0:02:46.2]} 12...
Nd8 {[%clk 0:02:30.7]} 13. Bb6 {[%clk 0:02:44.6]} 13... Rc8 {[%clk 0:01:55.6]}
14. Bxd8 {[%clk 0:02:30.6]} 14... Bxd8 {[%clk 0:01:53.6]} 15. Nxe6 {[%clk
0:02:29]} 15... Ba5 {[%clk 0:01:12.1]} 16. Nxg7+ {[%clk 0:02:19.3]} 16... Kd8
{[%clk 0:01:03.4]} 17. Nf5 {[%clk 0:01:14.7]} 17... Rf8 {[%clk 0:00:35.6]} 18.
O-O-O {[%clk 0:01:12.4]} 18... Bxc3 {[%clk 0:00:25]} 19. Rxd6 {[%clk 0:01:02.5]}
19... Bb4 {[%clk 0:00:10.8]} 20. Rxd7+ {[%clk 0:00:59.8]} 20... Nxd7 {[%clk
0:00:11.4]} 21. Qxh7 {[%clk 0:00:53.7]} 21... Kc7 {[%clk 0:00:05.9]} 22. Rd1
{[%clk 0:00:53.1]} 22... Rcd8 {[%clk 0:00:06.2]} 23. c3 {[%clk 0:00:52.5]} 23...
Bc5 {[%clk 0:00:06.1]} 24. Rd5 {[%clk 0:00:47.7]} 24... Bxf2 {[%clk 0:00:05.7]}
25. Qe7 {[%clk 0:00:42.1]} 1-0

[Event "Early-Titled-Tuesday-Blitz-February-13-2024"]
[Site "Chess.com"]
[Date "2024.02.13"]
[Round "3"]
[White "only_strong_moves"]
[Black "temus_galaktionov"]
[Result "1-0"]
[WhiteElo "2695"]
[BlackElo "2901"]
[TimeControl "180+1"]
[EndTime "8:31:17 PST"]
[Termination "only_strong_moves won by checkmate"]

1. e4 {[%clk 0:02:59.3]} 1... c6 {[%clk 0:03:00.9]} 2. d4 {[%clk 0:02:59.3]}
2... g6 {[%clk 0:02:58.2]} 3. c4 {[%clk 0:02:55]} 3... Bg7 {[%clk 0:02:58.6]} 4.
Nc3 {[%clk 0:02:55.1]} 4... d6 {[%clk 0:02:59.2]} 5. Be2 {[%clk 0:02:53.2]} 5...
Nd7 {[%clk 0:02:58.9]} 6. Be3 {[%clk 0:02:53.6]} 6... e5 {[%clk 0:02:59.2]} 7.
Nf3 {[%clk 0:02:52.9]} 7... Ngf6 {[%clk 0:02:58.9]} 8. O-O {[%clk 0:02:53.3]}
8... O-O {[%clk 0:02:58.5]} 9. h3 {[%clk 0:02:29.3]} 9... Qe7 {[%clk 0:02:57.9]}
10. Re1 {[%clk 0:02:23.5]} 10... Re8 {[%clk 0:02:47.2]} 11. Qd2 {[%clk
0:02:19.7]} 11... Nf8 {[%clk 0:02:41.1]} 12. d5 {[%clk 0:02:16.5]} 12... c5
{[%clk 0:02:41]} 13. Bh6 {[%clk 0:02:14.9]} 13... N8d7 {[%clk 0:02:29.8]} 14.
Bxg7 {[%clk 0:02:14.2]} 14... Kxg7 {[%clk 0:02:30.7]} 15. Nh4 {[%clk 0:02:05.7]}
15... Ng8 {[%clk 0:02:12.1]} 16. Nf3 {[%clk 0:02:04.2]} 16... h6 {[%clk
0:02:11.3]} 17. Nh2 {[%clk 0:02:02.6]} 17... f5 {[%clk 0:02:09.9]} 18. exf5
{[%clk 0:01:50.1]} 18... gxf5 {[%clk 0:02:10.8]} 19. Bh5 {[%clk 0:01:50.7]}
19... Rf8 {[%clk 0:02:09.8]} 20. f4 {[%clk 0:01:50.6]} 20... Ngf6 {[%clk
0:01:29]} 21. Bd1 {[%clk 0:01:38.1]} 21... e4 {[%clk 0:01:18]} 22. g4 {[%clk
0:01:38.1]} 22... Rg8 {[%clk 0:01:18]} 23. gxf5 {[%clk 0:01:31.3]} 23... Kh7+
{[%clk 0:01:09.2]} 24. Kh1 {[%clk 0:01:31.7]} 24... Nb6 {[%clk 0:01:06.5]} 25.
Ng4 {[%clk 0:01:28.6]} 25... Bxf5 {[%clk 0:01:04.3]} 26. Nxf6+ {[%clk
0:01:03.7]} 26... Qxf6 {[%clk 0:01:05.2]} 27. Nxe4 {[%clk 0:01:04.2]} 27...
Bxe4+ {[%clk 0:00:36.6]} 28. Rxe4 {[%clk 0:01:04.1]} 28... Qh4 {[%clk
0:00:21.1]} 29. Qd3 {[%clk 0:00:47.5]} 29... Kh8 {[%clk 0:00:18.3]} 30. Bc2
{[%clk 0:00:45.8]} 30... Rg3 {[%clk 0:00:17.1]} 31. Re8+ {[%clk 0:00:45.3]}
31... Kg7 {[%clk 0:00:14.4]} 32. Qh7+ {[%clk 0:00:43.4]} 32... Kf6 {[%clk
0:00:14.6]} 33. Re6# {[%clk 0:00:43.1]} 1-0

[Event "Early-Titled-Tuesday-Blitz-February-13-2024"]
[Site "Chess.com"]
[Date "2024.02.13"]
[Round "3"]
[White "ajeale2"]
[Black "maxip32"]
[Result "0-1"]
[WhiteElo "2460"]
[BlackElo "2660"]
[TimeControl "180+1"]
[EndTime "8:31:17 PST"]
[Termination "maxip32 won on time"]

1. c4 {[%clk 0:03:00.9]} 1... e6 {[%clk 0:02:57.5]} 2. Nf3 {[%clk 0:03:00.9]}
2... d5 {[%clk 0:02:58.3]} 3. g3 {[%clk 0:03:01.2]} 3... Nf6 {[%clk 0:02:57.8]}
4. Bg2 {[%clk 0:03:01.8]} 4... Be7 {[%clk 0:02:53.3]} 5. O-O {[%clk 0:03:02.1]}
5... O-O {[%clk 0:02:54.2]} 6. b3 {[%clk 0:03:01.9]} 6... b6 {[%clk 0:02:53.3]}
7. d4 {[%clk 0:02:58]} 7... Bb7 {[%clk 0:02:52]} 8. Ne5 {[%clk 0:02:57.8]} 8...
Nbd7 {[%clk 0:02:50.3]} 9. Nc3 {[%clk 0:02:58.3]} 9... c6 {[%clk 0:02:50.3]} 10.
Bf4 {[%clk 0:02:56]} 10... Nxe5 {[%clk 0:02:49.9]} 11. dxe5 {[%clk 0:02:55.1]}
11... Nd7 {[%clk 0:02:50.8]} 12. Qc2 {[%clk 0:02:53.3]} 12... Qc8 {[%clk
0:02:50.3]} 13. Rad1 {[%clk 0:02:40.9]} 13... dxc4 {[%clk 0:02:47.4]} 14. bxc4
{[%clk 0:02:40.1]} 14... Nc5 {[%clk 0:02:47.3]} 15. h4 {[%clk 0:02:32.1]} 15...
Rd8 {[%clk 0:02:46]} 16. h5 {[%clk 0:02:31.7]} 16... h6 {[%clk 0:02:38.1]} 17.
Qc1 {[%clk 0:02:15.2]} 17... Bf8 {[%clk 0:02:35.3]} 18. Qe3 {[%clk 0:02:14.9]}
18... Qc7 {[%clk 0:02:33.6]} 19. Qf3 {[%clk 0:02:13.5]} 19... Rxd1 {[%clk
0:02:32.7]} 20. Rxd1 {[%clk 0:02:13]} 20... Rd8 {[%clk 0:02:33.6]} 21. g4 {[%clk
0:01:07.7]} 21... Rxd1+ {[%clk 0:02:31.5]} 22. Nxd1 {[%clk 0:01:08.6]} 22... Qd8
{[%clk 0:02:31.9]} 23. Ne3 {[%clk 0:01:08.7]} 23... Qd4 {[%clk 0:02:27.9]} 24.
Kh2 {[%clk 0:00:27]} 24... Be7 {[%clk 0:02:27.7]} 25. Bg3 {[%clk 0:00:14.9]}
25... Bg5 {[%clk 0:02:19.5]} 26. Nf1 {[%clk 0:00:09.9]} 26... Qxc4 {[%clk
0:02:16.4]} 27. Qa3 {[%clk 0:00:08.5]} 27... a5 {[%clk 0:02:14.8]} 28. f4 {[%clk
0:00:08.6]} 28... Be7 {[%clk 0:02:14]} 29. Qf3 {[%clk 0:00:07.6]} 29... Qxa2
{[%clk 0:01:57.6]} 30. f5 {[%clk 0:00:07.8]} 30... exf5 {[%clk 0:01:55.1]} 31.
gxf5 {[%clk 0:00:08.3]} 31... Qb3 {[%clk 0:01:51.1]} 32. e3 {[%clk 0:00:07.3]}
32... Qc3 {[%clk 0:01:43]} 33. Bf4 {[%clk 0:00:04.3]} 33... Bc8 {[%clk
0:01:38.5]} 34. Ng3 {[%clk 0:00:04.5]} 34... Bd7 {[%clk 0:01:33.9]} 35. Qg4
{[%clk 0:00:04.5]} 35... Kf8 {[%clk 0:01:30.8]} 36. Qe2 {[%clk 0:00:01.8]} 36...
Qd3 {[%clk 0:01:29.6]} 37. Qf3 {[%clk 0:00:01.8]} 37... a4 {[%clk 0:01:26.6]}
38. f6 {[%clk 0:00:01.9]} 38... Bd8 {[%clk 0:01:21.1]} 39. fxg7+ {[%clk
0:00:02]} 39... Kxg7 {[%clk 0:01:22]} 40. Qf2 {[%clk 0:00:01.4]} 40... Be6
{[%clk 0:01:14.3]} 41. Ne2 {[%clk 0:00:01.7]} 41... Qf5 {[%clk 0:01:13.4]} 0-1

[Event "Early-Titled-Tuesday-Blitz-February-13-2024"]
[Site "Chess.com"]
[Date "2024.02.13"]
[Round "3"]
[White "shimastream"]
[Black "winniethepooh04"]
[Result "1-0"]
[WhiteElo "2997"]
[BlackElo "2539"]
[TimeControl "180+1"]
[EndTime "8:31:18 PST"]
[Termination "shimastream won by resignation"]

1. e4 {[%clk 0:03:00.9]} 1... e6 {[%clk 0:03:00.9]} 2. d4 {[%clk 0:02:51.9]}
2... d5 {[%clk 0:03:01.5]} 3. e5 {[%clk 0:02:52.3]} 3... c5 {[%clk 0:03:01.3]}
4. Nf3 {[%clk 0:02:52.2]} 4... Nc6 {[%clk 0:03:01.6]} 5. Bd3 {[%clk 0:02:52.1]}
5... Bd7 {[%clk 0:03:02.3]} 6. O-O {[%clk 0:02:49.3]} 6... Nge7 {[%clk
0:03:02.7]} 7. c3 {[%clk 0:02:41.8]} 7... cxd4 {[%clk 0:03:00.3]} 8. cxd4 {[%clk
0:02:41.7]} 8... Nb4 {[%clk 0:03:00.9]} 9. Be2 {[%clk 0:02:39.8]} 9... Ng6
{[%clk 0:03:00.6]} 10. Nc3 {[%clk 0:02:39.4]} 10... Be7 {[%clk 0:03:00.4]} 11.
g3 {[%clk 0:02:39.2]} 11... O-O {[%clk 0:03:00.1]} 12. h4 {[%clk 0:02:38.5]}
12... Rc8 {[%clk 0:03:00.4]} 13. h5 {[%clk 0:02:24.6]} 13... Nh8 {[%clk
0:02:59.5]} 14. a3 {[%clk 0:02:23.9]} 14... Nc6 {[%clk 0:02:58.9]} 15. Bd3
{[%clk 0:02:22.4]} 15... f5 {[%clk 0:02:54.8]} 16. exf6 {[%clk 0:02:14.2]} 16...
Bxf6 {[%clk 0:02:54.7]} 17. Ne2 {[%clk 0:02:12]} 17... Nf7 {[%clk 0:02:54.1]}
18. Bc2 {[%clk 0:02:10.7]} 18... e5 {[%clk 0:02:46.9]} 19. dxe5 {[%clk
0:02:09.8]} 19... Ncxe5 {[%clk 0:02:42.5]} 20. Nxe5 {[%clk 0:02:07.1]} 20...
Nxe5 {[%clk 0:02:37.3]} 21. Nf4 {[%clk 0:01:42.4]} 21... d4 {[%clk 0:02:34.2]}
22. Be4 {[%clk 0:01:32.2]} 22... Bc6 {[%clk 0:02:30.9]} 23. Bxc6 {[%clk
0:01:28]} 23... bxc6 {[%clk 0:02:31.4]} 24. Qb3+ {[%clk 0:01:15.2]} 24... Kh8
{[%clk 0:02:24.5]} 25. Kg2 {[%clk 0:01:03.2]} 25... c5 {[%clk 0:02:19.2]} 26.
Ne6 {[%clk 0:00:49.8]} 26... c4 {[%clk 0:02:08.9]} 27. Qb7 {[%clk 0:00:47.8]}
27... Qd6 {[%clk 0:01:54.8]} 28. Nxf8 {[%clk 0:00:46.1]} 28... Qxf8 {[%clk
0:01:55.7]} 29. h6 {[%clk 0:00:42.5]} 29... g5 {[%clk 0:01:53.1]} 30. Qe4 {[%clk
0:00:40.5]} 30... g4 {[%clk 0:01:49.1]} 31. Qxd4 {[%clk 0:00:33.8]} 31... Qf7
{[%clk 0:01:45]} 32. Be3 {[%clk 0:00:26.8]} 32... Qb7+ {[%clk 0:01:43.5]} 33. f3
{[%clk 0:00:21.9]} 33... gxf3+ {[%clk 0:01:40]} 34. Kh3 {[%clk 0:00:20.2]} 34...
Qf7 {[%clk 0:01:35.1]} 35. g4 {[%clk 0:00:13.6]} 35... Rd8 {[%clk 0:01:33.7]}
36. Qf4 {[%clk 0:00:13.1]} 36... Rd3 {[%clk 0:01:26.5]} 37. Rad1 {[%clk
0:00:12.4]} 37... Qg6 {[%clk 0:01:20.5]} 38. Rxd3 {[%clk 0:00:11.6]} 38... cxd3
{[%clk 0:01:20.7]} 39. Rc1 {[%clk 0:00:11]} 39... Nf7 {[%clk 0:01:13.7]} 40.
Rc8+ {[%clk 0:00:10]} 40... Bd8 {[%clk 0:01:12.3]} 41. Rxd8+ {[%clk 0:00:06.2]}
41... Nxd8 {[%clk 0:01:11.9]} 42. Qf8+ {[%clk 0:00:06.8]} 1-0

[Event "Early-Titled-Tuesday-Blitz-February-13-2024"]
[Site "Chess.com"]
[Date "2024.02.13"]
[Round "3"]
[White "Hauptsache_Gambit"]
[Black "hsd2016"]
[Result "0-1"]
[WhiteElo "2018"]
[BlackElo "2327"]
[TimeControl "180+1"]
[EndTime "8:31:18 PST"]
[Termination "hsd2016 won on time"]

1. e4 {[%clk 0:02:57.3]} 1... e5 {[%clk 0:02:59.4]} 2. Bc4 {[%clk 0:02:56.9]}
2... Nf6 {[%clk 0:02:57.9]} 3. d4 {[%clk 0:02:57.5]} 3... exd4 {[%clk
0:02:58.1]} 4. Qxd4 {[%clk 0:02:57.7]} 4... c5 {[%clk 0:02:56.7]} 5. Qd3 {[%clk
0:02:54.4]} 5... Nc6 {[%clk 0:02:56.8]} 6. f4 {[%clk 0:02:43.6]} 6... d5 {[%clk
0:02:52.8]} 7. exd5 {[%clk 0:02:38.5]} 7... Nb4 {[%clk 0:02:52.2]} 8. Qe2+
{[%clk 0:02:35]} 8... Be7 {[%clk 0:02:51.2]} 9. Nc3 {[%clk 0:02:28.8]} 9... Bf5
{[%clk 0:02:49.5]} 10. Bb3 {[%clk 0:02:20.9]} 10... O-O {[%clk 0:02:44.1]} 11.
Nf3 {[%clk 0:02:21.3]} 11... c4 {[%clk 0:02:38.8]} 12. Qxc4 {[%clk 0:02:08.7]}
12... Rc8 {[%clk 0:02:38.2]} 13. Qe2 {[%clk 0:01:59]} 13... Nfxd5 {[%clk
0:02:20.3]} 14. O-O {[%clk 0:01:48]} 14... Bc5+ {[%clk 0:02:20.6]} 15. Kh1
{[%clk 0:01:47.5]} 15... Nxc3 {[%clk 0:02:16.5]} 16. bxc3 {[%clk 0:01:48.4]}
16... Nd5 {[%clk 0:02:15.7]} 17. Qe5 {[%clk 0:01:38.5]} 17... Be6 {[%clk
0:02:09.3]} 18. f5 {[%clk 0:01:33.6]} 18... Bd6 {[%clk 0:02:06.2]} 19. Qe4
{[%clk 0:01:13.7]} 19... Nxc3 {[%clk 0:02:03.8]} 20. Qg4 {[%clk 0:01:08.5]}
20... Bxb3 {[%clk 0:02:01]} 21. axb3 {[%clk 0:01:07.2]} 21... Kh8 {[%clk
0:01:32]} 22. Ng5 {[%clk 0:00:44]} 22... Qf6 {[%clk 0:01:15.2]} 23. Qh5 {[%clk
0:00:25.3]} 23... h6 {[%clk 0:01:13.6]} 24. Rxa7 {[%clk 0:00:20.1]} 24... Kg8
{[%clk 0:01:05.2]} 25. Rxb7 {[%clk 0:00:14.2]} 25... hxg5 {[%clk 0:01:02.8]} 26.
Bxg5 {[%clk 0:00:15.1]} 26... Qe5 {[%clk 0:01:02.9]} 27. f6 {[%clk 0:00:13.5]}
27... gxf6 {[%clk 0:00:54]} 28. Qh3 {[%clk 0:00:01.7]} 28... fxg5 {[%clk
0:00:51.6]} 29. Rd7 {[%clk 0:00:02.3]} 29... Ne4 {[%clk 0:00:50.5]} 30. Rxd6
{[%clk 0:00:01.2]} 30... Nf2+ {[%clk 0:00:50.8]} 0-1

[Event "Early-Titled-Tuesday-Blitz-February-13-2024"]
[Site "Chess.com"]
[Date "2024.02.13"]
[Round "3"]
[White "arctic_t00"]
[Black "Elsa167"]
[Result "0-1"]
[WhiteElo "2701"]
[BlackElo "2923"]
[TimeControl "180+1"]
[EndTime "8:31:19 PST"]
[Termination "Elsa167 won by resignation"]

1. d4 {[%clk 0:03:00.9]} 1... Nf6 {[%clk 0:02:52.6]} 2. Nf3 {[%clk 0:03:01.2]}
2... e6 {[%clk 0:02:52.2]} 3. e3 {[%clk 0:03:01.7]} 3... b6 {[%clk 0:02:50.4]}
4. Bd3 {[%clk 0:03:01.9]} 4... Bb7 {[%clk 0:02:50.9]} 5. O-O {[%clk 0:03:02.4]}
5... g6 {[%clk 0:02:51.1]} 6. c4 {[%clk 0:02:55.6]} 6... Bg7 {[%clk 0:02:50.7]}
7. Nc3 {[%clk 0:02:56.2]} 7... O-O {[%clk 0:02:50.7]} 8. e4 {[%clk 0:02:53.7]}
8... d6 {[%clk 0:02:50.8]} 9. h3 {[%clk 0:02:36]} 9... Nbd7 {[%clk 0:02:50.3]}
10. Bc2 {[%clk 0:02:23.7]} 10... e5 {[%clk 0:02:41.1]} 11. Re1 {[%clk
0:02:22.5]} 11... Re8 {[%clk 0:02:39.5]} 12. d5 {[%clk 0:02:20.9]} 12... a5
{[%clk 0:02:39.2]} 13. a3 {[%clk 0:02:07.3]} 13... Rf8 {[%clk 0:02:35.1]} 14.
Be3 {[%clk 0:02:02.3]} 14... h6 {[%clk 0:02:21.2]} 15. b4 {[%clk 0:02:01.1]}
15... Nh7 {[%clk 0:01:59.4]} 16. c5 {[%clk 0:01:45]} 16... axb4 {[%clk
0:01:33.4]} 17. axb4 {[%clk 0:01:45]} 17... Rxa1 {[%clk 0:01:34.3]} 18. Qxa1
{[%clk 0:01:45]} 18... bxc5 {[%clk 0:01:34.6]} 19. bxc5 {[%clk 0:01:45.3]} 19...
Nxc5 {[%clk 0:01:35.3]} 20. Bxc5 {[%clk 0:01:44.9]} 20... dxc5 {[%clk
0:01:36.2]} 21. Qa7 {[%clk 0:01:32.6]} 21... Bc8 {[%clk 0:01:34.1]} 22. Nb5
{[%clk 0:01:24.7]} 22... Ng5 {[%clk 0:01:31.4]} 23. Nxg5 {[%clk 0:00:59]} 23...
Qxg5 {[%clk 0:01:31.1]} 24. Re3 {[%clk 0:00:59.6]} 24... Bxh3 {[%clk 0:01:09.5]}
25. Rxh3 {[%clk 0:00:43.7]} 25... Qc1+ {[%clk 0:01:10.4]} 26. Kh2 {[%clk
0:00:44.3]} 26... Qxc2 {[%clk 0:01:10.9]} 27. f3 {[%clk 0:00:34.6]} 27... h5
{[%clk 0:01:01]} 28. Qxc7 {[%clk 0:00:22.3]} 28... Qb2 {[%clk 0:00:50.9]} 29.
Qxc5 {[%clk 0:00:12.3]} 29... Bh6 {[%clk 0:00:49.9]} 30. Rh4 {[%clk 0:00:10.9]}
30... Bg5 {[%clk 0:00:45.8]} 0-1

[Event "Early-Titled-Tuesday-Blitz-February-13-2024"]
[Site "Chess.com"]
[Date "2024.02.13"]
[Round "3"]
[White "karinachess1"]
[Black "db-banana"]
[Result "1-0"]
[WhiteElo "2686"]
[BlackElo "2489"]
[TimeControl "180+1"]
[EndTime "8:31:19 PST"]
[Termination "karinachess1 won on time"]

1. d4 {[%clk 0:03:00.9]} 1... Nf6 {[%clk 0:02:57.8]} 2. c4 {[%clk 0:03:00.8]}
2... e6 {[%clk 0:02:56.5]} 3. Nc3 {[%clk 0:03:01.1]} 3... Bb4 {[%clk 0:02:54.5]}
4. a3 {[%clk 0:03:01.3]} 4... Bxc3+ {[%clk 0:02:54]} 5. bxc3 {[%clk 0:03:02.2]}
5... O-O {[%clk 0:02:54.3]} 6. f3 {[%clk 0:03:02.5]} 6... d5 {[%clk 0:02:49.7]}
7. cxd5 {[%clk 0:02:54.6]} 7... exd5 {[%clk 0:02:46.8]} 8. e3 {[%clk 0:02:51.5]}
8... b6 {[%clk 0:02:40.2]} 9. Bd3 {[%clk 0:02:44.2]} 9... Ba6 {[%clk 0:02:40.1]}
10. Bc2 {[%clk 0:02:39.4]} 10... Re8 {[%clk 0:02:25.2]} 11. Ne2 {[%clk
0:02:39.6]} 11... Nbd7 {[%clk 0:02:20.4]} 12. O-O {[%clk 0:02:36.9]} 12... Nf8
{[%clk 0:02:18.9]} 13. Re1 {[%clk 0:02:17.7]} 13... h5 {[%clk 0:02:06.2]} 14.
Ng3 {[%clk 0:02:15.3]} 14... h4 {[%clk 0:02:05.1]} 15. Nf5 {[%clk 0:02:15.5]}
15... h3 {[%clk 0:01:37.6]} 16. e4 {[%clk 0:02:15.7]} 16... g6 {[%clk
0:01:14.8]} 17. Nh6+ {[%clk 0:02:04.4]} 17... Kg7 {[%clk 0:01:13.9]} 18. e5
{[%clk 0:02:04.9]} 18... N6h7 {[%clk 0:01:06.4]} 19. Qd2 {[%clk 0:02:03.7]}
19... hxg2 {[%clk 0:00:24.7]} 20. Ng4 {[%clk 0:01:54.7]} 20... Qh4 {[%clk
0:00:24.6]} 21. Qf2 {[%clk 0:01:37.5]} 21... Qxf2+ {[%clk 0:00:23.3]} 22. Kxf2
{[%clk 0:01:38.4]} 22... Ne6 {[%clk 0:00:20.9]} 23. Bh6+ {[%clk 0:01:32.8]}
23... Kg8 {[%clk 0:00:20.3]} 24. f4 {[%clk 0:01:33.4]} 24... Ng7 {[%clk
0:00:16.9]} 25. Rg1 {[%clk 0:01:23.3]} 25... Bc8 {[%clk 0:00:13.6]} 26. Ne3
{[%clk 0:01:11.1]} 26... c6 {[%clk 0:00:02.9]} 27. Rxg2 {[%clk 0:01:08.7]} 27...
Kh8 {[%clk 0:00:01.3]} 28. Rag1 {[%clk 0:01:01.1]} 28... Rg8 {[%clk 0:00:01.9]}
29. f5 {[%clk 0:00:53]} 29... g5 {[%clk 0:00:01.2]} 30. Bxg5 {[%clk 0:00:45.5]}
1-0